bitfinex/quotes_BTCUSD_20250513
["timestamp","ask_amount","ask_price","bid_price","bid_amount"]
[1747111313770,0.80484374,102570.0,102560.0,0.007]
[1747111313974,1.16604374,102570.0,102560.0,0.007]
[1747111314175,1.46604374,102570.0,102560.0,0.007]
[1747111314503,1.45697037,102570.0,102560.0,0.007]
[1747111314720,1.45697037,102570.0,102560.0,0.005]
[1747111314929,1.46197037,102570.0,102560.0,0.002]
[1747111315131,1.46897037,102570.0,102560.0,0.003]
[1747111315351,1.65652661,102570.0,102560.0,0.003]
[1747111316314,1.65052661,102570.0,102560.0,0.002]
[1747111316606,1.65752661,102570.0,102560.0,0.003]
[1747111316806,1.95752661,102570.0,102560.0,0.003]
[1747111317703,2.64072661,102570.0,102560.0,0.003]
[1747111321107,0.48034266,102550.0,102540.0,0.0173]
[1747111321449,1.08370462,102550.0,102540.0,0.0336]
[1747111322427,1.08370462,102550.0,102540.0,0.03408509]
[1747111322994,1.08370462,102550.0,102540.0,0.03608509]
[1747111323191,0.68592377,102550.0,102540.0,0.04008509]
[1747111323393,1.07020377,102550.0,102540.0,0.04008509]
[1747111323780,1.07020377,102550.0,102540.0,0.03608509]
[1747111324063,1.07020377,102550.0,102540.0,0.03408509]
[1747111324064,0.33779648,102550.0,102540.0,0.03408509]
[1747111324203,0.02450144,102550.0,102540.0,0.25938664]
[1747111324387,0.0402523,102550.0,102540.0,0.26038664]
[1747111324599,0.05000345,102550.0,102540.0,0.26038664]
[1747111324802,0.05912179,102550.0,102540.0,0.26038664]
[1747111325149,0.07576022,102550.0,102540.0,0.26038664]
[1747111325327,0.08551137,102550.0,102540.0,0.26038664]
[1747111325511,0.09526261,102550.0,102540.0,0.26038664]
[1747111325720,0.09526261,102550.0,102540.0,0.26038674]
[1747111326110,0.08926261,102550.0,102540.0,0.25938674]
[1747111326331,0.08426261,102550.0,102540.0,0.25838674]
[1747111326570,0.08526347,102550.0,102540.0,0.26438674]
[1747111327023,0.02961997,102550.0,102540.0,0.27413836]
[1747111327697,0.03937112,102550.0,102540.0,0.27413836]
[1747111330147,0.2343986,102550.0,102540.0,0.04008509]
[1747111330349,0.47592063,102550.0,102540.0,0.04008509]
[1747111330591,0.57177493,102550.0,102540.0,0.04008509]
[1747111330750,0.66762923,102550.0,102540.0,0.04008509]
[1747111331545,0.65851089,102550.0,102540.0,0.04008509]
[1747111331754,0.2155293,102550.0,102540.0,0.04008509]
[1747111331959,0.2155293,102550.0,102540.0,0.05958938]
[1747111332155,0.0302523,102550.0,102540.0,0.27413874]
[1747111333165,0.04000316,102550.0,102540.0,0.27413874]
[1747111333471,0.04912322,102550.0,102540.0,0.27413874]
[1747111334043,0.01012006,102550.0,102540.0,0.27413874]
[1747111334326,0.01012006,102550.0,102540.0,0.87541173]
[1747111334535,0.001,102550.0,102540.0,0.97126603]
[1747111335149,0.001,102550.0,102540.0,0.71999304]
[1747111339121,0.03025192,102550.0,102540.0,0.61413874]
[1747111339315,0.04588914,102550.0,102540.0,0.61413874]
[1747111339522,0.06539077,102550.0,102540.0,0.61413874]
[1747111340437,0.03025183,102550.0,102540.0,0.61413874]
[1747111341759,0.03025173,102550.0,102540.0,0.61413874]
[1747111341925,0.001,102550.0,102540.0,0.61413874]
[1747111342128,0.02050115,102550.0,102540.0,0.61413874]
[1747111342349,0.02050106,102550.0,102540.0,0.61413874]
[1747111342751,0.01075048,102550.0,102540.0,0.61413874]
[1747111343383,0.001,102550.0,102540.0,0.62413874]
[1747111345396,0.001,102550.0,102540.0,0.61413874]
[1747111345570,0.23503045,102550.0,102540.0,0.61413893]
[1747111345775,0.27992131,102550.0,102540.0,0.62389065]
[1747111345978,0.27992131,102550.0,102540.0,0.61413893]
[1747111346241,0.27992131,102550.0,102540.0,0.38008509]
[1747111346242,0.28967265,102550.0,102540.0,0.38008509]
[1747111346429,0.28967265,102550.0,102540.0,0.04008509]
[1747111346430,0.5208134,102550.0,102540.0,0.04008509]
[1747111346628,0.5208134,102550.0,102540.0,0.04983738]
[1747111346832,0.5208134,102550.0,102540.0,0.04008509]
[1747111347034,0.51106216,102550.0,102540.0,0.04008509]
[1747111347249,0.25978917,102550.0,102540.0,0.04983738]
[1747111347658,0.25978917,102550.0,102540.0,0.04008509]
[1747111348061,0.60691646,102550.0,102540.0,0.04008509]
[1747111348627,0.5977964,102550.0,102540.0,0.04008509]
[1747111349030,0.34652341,102550.0,102540.0,0.04008509]
[1747111349238,0.30163245,102550.0,102540.0,0.04008509]
[1747111350050,0.30163245,102550.0,102540.0,0.04983738]
[1747111352950,0.31075919,102550.0,102540.0,0.04983738]
[1747111354622,0.31075919,102550.0,102540.0,0.05958957]
[1747111355134,0.30163245,102550.0,102540.0,0.2643875]
[1747111355341,0.30163245,102550.0,102540.0,0.05958957]
[1747111355557,0.001,102550.0,102540.0,0.27413893]
[1747111356837,0.001,102550.0,102540.0,0.61413893]
[1747111357247,0.01012918,102550.0,102540.0,0.61413893]
[1747111360363,0.01012918,102550.0,102540.0,1.35530622]
[1747111360811,0.01012918,102550.0,102540.0,1.36987466]
[1747111361026,0.001,102550.0,102540.0,1.36987466]
[1747111364099,0.001,102550.0,102540.0,1.76987466]
[1747111369437,0.001,102550.0,102540.0,1.36987466]
[1747111369819,0.001,102550.0,102540.0,1.76987466]
[1747111370602,0.001,102550.0,102540.0,1.36987466]
[1747111371105,0.001,102550.0,102540.0,1.76987466]
[1747111371875,0.001,102550.0,102540.0,1.36987466]
[1747111373747,0.001,102550.0,102540.0,1.11860167]
[1747111374227,0.001,102550.0,102540.0,1.36987466]
[1747111375614,0.03836983,102570.0,102560.0,0.59465781]
[1747111375986,0.03836983,102570.0,102560.0,0.5946579]
[1747111376330,0.02862059,102570.0,102560.0,0.60440762]
[1747111376483,0.03836983,102570.0,102560.0,0.60440762]
[1747111377129,0.02862059,102570.0,102560.0,0.60440762]
[1747111377350,0.04162012,102570.0,102560.0,0.60640762]
[1747111377555,0.05136927,102570.0,102560.0,0.60640762]
[1747111377758,0.04162012,102570.0,102560.0,0.60640762]
[1747111377968,0.05136927,102570.0,102560.0,0.60640762]
[1747111378711,0.06111851,102570.0,102560.0,0.60640762]
[1747111379405,0.05136927,102570.0,102560.0,0.60640762]
[1747111380171,0.05136917,102570.0,102560.0,0.60640762]
[1747111381016,0.02212268,102570.0,102560.0,0.79828762]
[1747111381221,0.02212268,102570.0,102560.0,1.34733491]
[1747111381440,0.013,102570.0,102560.0,1.34733491]
[1747111382438,0.006,102570.0,102560.0,1.34633491]
[1747111382623,0.006,102570.0,102560.0,0.96353491]
[1747111382832,0.006,102570.0,102560.0,1.34729491]
[1747111383435,0.006,102570.0,102560.0,1.34629491]
[1747111383640,0.01887031,102580.0,102570.0,0.25713594]
[1747111384245,0.02861803,102580.0,102570.0,0.25713594]
[1747111384803,0.00912268,102580.0,102570.0,0.25713594]
[1747111385007,0.01612268,102580.0,102570.0,0.25813594]
[1747111385207,0.0258704,102580.0,102570.0,0.25813594]
[1747111385732,0.0258705,102580.0,102570.0,0.25813594]
[1747111386134,0.0258704,102580.0,102570.0,0.25813594]
[1747111386346,0.0328704,102580.0,102570.0,0.25913594]
[1747111387116,0.02312268,102580.0,102570.0,0.59913594]
[1747111387335,0.02312268,102580.0,102570.0,0.86040893]
[1747111387542,0.02312268,102580.0,102570.0,0.95626323]
[1747111388755,0.014,102580.0,102570.0,0.95626323]
[1747111389634,0.013912,102580.0,102570.0,0.95626323]
[1747111391188,0.013912,102580.0,102570.0,1.20753622]
[1747111391589,0.013912,102580.0,102570.0,1.62877622]
[1747111391843,0.013912,102580.0,102570.0,1.37750323]
[1747111392011,0.013912,102580.0,102570.0,1.64331707]
[1747111392424,0.013912,102580.0,102570.0,2.04331707]
[1747111392865,0.001,102590.0,102580.0,0.26511408]
[1747111393022,0.001,102590.0,102580.0,0.99588137]
[1747111393438,0.001,102590.0,102580.0,0.80412137]
[1747111393635,0.001,102590.0,102580.0,0.74460838]
[1747111394062,0.001,102590.0,102580.0,0.74560838]
[1747111394238,0.001,102590.0,102580.0,0.74760838]
[1747111396135,0.01074668,102590.0,102580.0,0.74760838]
[1747111396773,0.01074668,102590.0,102580.0,0.55584838]
[1747111396978,0.01074668,102590.0,102580.0,0.74760838]
[1747111397246,0.02049345,102590.0,102580.0,0.74760838]
[1747111398048,0.001,102590.0,102580.0,0.74760838]
[1747111398275,0.01074668,102590.0,102580.0,0.74760838]
[1747111398865,0.001,102590.0,102580.0,0.74760838]
[1747111399267,0.01074677,102590.0,102580.0,0.74760838]
[1747111399468,0.01074668,102590.0,102580.0,0.74760838]
[1747111401337,0.001,102590.0,102580.0,0.74760838]
[1747111401715,0.01074668,102590.0,102580.0,0.74760838]
[1747111401925,0.001,102590.0,102580.0,0.74760838]
[1747111402132,0.01074668,102590.0,102580.0,0.74760838]
[1747111402864,0.001,102590.0,102580.0,0.74760838]
[1747111403071,0.01074668,102590.0,102580.0,0.74760838]
[1747111403952,0.001,102590.0,102580.0,0.74760838]
[1747111404098,0.01074668,102590.0,102580.0,0.74760838]
[1747111405954,0.001,102590.0,102580.0,0.74760838]
[1747111409205,0.001,102590.0,102580.0,0.91227179]
[1747111410359,0.01074677,102590.0,102580.0,0.91227179]
[1747111410691,0.001,102590.0,102580.0,0.91227179]
[1747111411087,0.01074677,102590.0,102580.0,0.74760838]
[1747111411302,0.001,102590.0,102580.0,0.91227179]
[1747111415016,0.01074668,102590.0,102580.0,0.91227179]
[1747111415210,0.001,102590.0,102580.0,0.91227179]
[1747111415630,0.01074668,102590.0,102580.0,0.91227179]
[1747111415848,0.02049355,102590.0,102580.0,0.91227179]
[1747111416713,0.02962115,102590.0,102580.0,0.91227179]
[1747111417111,0.02962115,102590.0,102580.0,0.72051179]
[1747111417288,0.02962115,102590.0,102580.0,0.65163408]
[1747111417499,0.22457192,102590.0,102580.0,0.64188626]
[1747111417689,0.23431898,102590.0,102580.0,0.64188626]
[1747111417893,0.02962115,102590.0,102580.0,0.65163408]
[1747111418079,0.02962105,102590.0,102580.0,0.26811408]
[1747111418265,0.02962105,102590.0,102580.0,0.65147408]
[1747111419745,0.03936801,102590.0,102580.0,0.65147408]
[1747111420074,0.02962105,102590.0,102580.0,0.26811408]
[1747111420203,0.02962105,102590.0,102580.0,0.65147408]
[1747111420775,0.02962105,102590.0,102580.0,0.26811408]
[1747111420972,0.02962105,102590.0,102580.0,0.65147408]
[1747111421331,0.02962105,102590.0,102580.0,0.26811408]
[1747111421536,0.02962105,102590.0,102580.0,0.65147408]
[1747111421969,0.01987428,102590.0,102580.0,0.65147408]
[1747111422172,0.02962105,102590.0,102580.0,0.65147408]
[1747111425901,0.0101276,102590.0,102580.0,0.81613749]
[1747111426117,0.01987437,102590.0,102580.0,0.81613749]
[1747111426268,0.01987437,102590.0,102580.0,0.65147408]
[1747111426872,0.02962124,102590.0,102580.0,0.66122199]
[1747111427142,0.01987437,102590.0,102580.0,0.66122199]
[1747111428188,0.01987447,102590.0,102580.0,0.66122199]
[1747111428399,0.0101276,102590.0,102580.0,0.66122199]
[1747111428644,0.02962133,102590.0,102580.0,0.65147417]
[1747111428852,0.01987437,102590.0,102580.0,0.8258854]
[1747111429023,0.01987437,102590.0,102580.0,0.65147417]
[1747111429200,0.02962124,102590.0,102580.0,0.66122199]
[1747111429528,0.01987437,102590.0,102580.0,0.66122199]
[1747111430651,0.0101276,102590.0,102580.0,0.66122199]
[1747111431221,0.01987428,102590.0,102580.0,0.66122199]
[1747111432201,0.0101276,102590.0,102580.0,0.66122199]
[1747111432706,0.01987428,102590.0,102580.0,0.66122199]
[1747111432911,0.02962115,102590.0,102580.0,0.66122199]
[1747111433211,0.01987428,102590.0,102580.0,0.66122199]
[1747111433359,0.02962115,102590.0,102580.0,0.66122199]
[1747111435017,0.02962115,102590.0,102580.0,0.64172626]
[1747111435018,0.06474736,102590.0,102580.0,0.64172626]
[1747111435254,0.02962115,102590.0,102580.0,0.65147408]
[1747111435471,0.01987428,102590.0,102580.0,0.65147408]
[1747111435659,0.02962115,102590.0,102580.0,0.65147408]
[1747111436106,0.01987428,102590.0,102580.0,0.65147408]
[1747111437353,0.01987437,102590.0,102580.0,0.65147408]
[1747111437534,0.01987428,102590.0,102580.0,0.65147408]
[1747111437737,0.0101276,102590.0,102580.0,0.65147408]
[1747111437943,0.0101276,102590.0,102580.0,0.81613749]
[1747111438148,0.0101276,102590.0,102580.0,0.65147408]
[1747111440812,0.0101276,102590.0,102580.0,0.81613749]
[1747111441871,0.0101276,102590.0,102580.0,0.65147408]
[1747111442045,0.0101276,102590.0,102580.0,0.66512402]
[1747111445207,0.0101276,102590.0,102580.0,0.65147408]
[1747111445699,0.0101276,102590.0,102580.0,0.82953156]
[1747111447562,0.0101276,102590.0,102580.0,0.81613749]
[1747111449978,0.01987428,102590.0,102580.0,0.65147408]
[1747111450191,0.03453216,102590.0,102580.0,0.65147408]
[1747111450384,0.0101276,102590.0,102580.0,0.65147408]
[1747111452323,0.20507837,102590.0,102580.0,0.0339]
[1747111452546,0.23431907,102590.0,102580.0,0.98115436]
[1747111452758,0.23431907,102590.0,102580.0,0.99090218]
[1747111453107,0.02962124,102590.0,102580.0,0.99090218]
[1747111453304,0.0101276,102590.0,102580.0,0.99090218]
[1747111453511,0.01987437,102590.0,102580.0,0.99090218]
[1747111454116,0.02962133,102590.0,102580.0,0.99090218]
[1747111454331,0.01987437,102590.0,102580.0,0.99090218]
[1747111454795,0.02962133,102590.0,102580.0,0.99090218]
[1747111455201,0.01987437,102590.0,102580.0,0.99090218]
[1747111455341,0.01988179,102590.0,102580.0,0.99090218]
[1747111455747,0.02962875,102590.0,102580.0,0.99090218]
[1747111455947,0.01988179,102590.0,102580.0,0.99090218]
[1747111456840,0.02962866,102590.0,102580.0,0.99090218]
[1747111457201,0.02962866,102590.0,102580.0,0.98115455]
[1747111457202,0.24995958,102590.0,102580.0,0.98115455]
[1747111457409,0.04526185,102590.0,102580.0,0.99090237]
[1747111458213,0.24995968,102590.0,102580.0,0.99090246]
[1747111458641,0.04526185,102590.0,102580.0,0.80917028]
[1747111458844,0.05500872,102590.0,102580.0,0.80917028]
[1747111459165,0.24995949,102590.0,102580.0,0.78967455]
[1747111459365,0.25970655,102590.0,102580.0,0.79942237]
[1747111459566,0.22457943,102590.0,102580.0,0.77017825]
[1747111459747,0.02962866,102590.0,102580.0,0.78967474]
[1747111459956,0.02962866,102590.0,102580.0,0.56546]
[1747111459957,0.22457943,102590.0,102580.0,0.56546]
[1747111460155,0.23368019,102590.0,102580.0,0.003]
[1747111460320,0.29321784,102590.0,102580.0,0.003]
[1747111460522,0.45788125,102590.0,102580.0,0.003]
[1747111460725,0.45998125,102590.0,102580.0,0.003]
[1747111462261,0.55583555,102590.0,102580.0,0.003]
[1747111464239,0.39117214,102590.0,102580.0,0.003]
[1747111464435,0.55583555,102590.0,102580.0,0.002]
[1747111464654,0.55583555,102590.0,102560.0,0.5961568]
[1747111464655,0.2144866,102570.0,102560.0,0.5961568]
[1747111464859,0.21448651,102570.0,102560.0,0.59630224]
[1747111465085,0.26651821,102570.0,102560.0,0.59630224]
[1747111465283,0.27626736,102570.0,102560.0,0.59630233]
[1747111465482,0.26651821,102570.0,102560.0,0.59630233]
[1747111465836,0.26751821,102570.0,102560.0,0.61405224]
[1747111465961,0.22562153,102570.0,102560.0,0.62405224]
[1747111467204,0.01113502,102570.0,102560.0,0.79846537]
[1747111467403,0.01113502,102570.0,102560.0,0.80846537]
[1747111467610,0.002,102570.0,102560.0,0.80846537]
[1747111467964,0.002,102570.0,102560.0,0.64380196]
[1747111470303,0.002,102570.0,102560.0,0.80846537]
[1747111470475,0.002,102570.0,102560.0,0.97312878]
[1747111470685,0.002,102570.0,102560.0,0.80846537]
[1747111473792,0.002,102570.0,102560.0,0.90431967]
[1747111475116,0.002,102570.0,102560.0,1.30431967]
[1747111475727,0.002,102570.0,102560.0,0.90431967]
[1747111485849,0.002,102570.0,102560.0,1.08352393]
[1747111486268,0.002,102570.0,102560.0,1.48352393]
[1747111486514,0.002,102570.0,102560.0,1.55352393]
[1747111486691,0.01112891,102570.0,102560.0,1.55352393]
[1747111487903,0.002,102570.0,102560.0,1.55352393]
[1747111488609,0.002,102570.0,102560.0,1.54352393]
[1747111495385,0.002,102570.0,102560.0,1.14352393]
[1747111495807,0.002,102570.0,102560.0,1.54352393]
[1747111496370,0.002,102570.0,102560.0,1.14352393]
[1747111496841,0.002,102570.0,102560.0,1.54352393]
[1747111503928,0.002,102570.0,102560.0,1.92616393]
[1747111504378,0.002,102570.0,102560.0,2.09082734]
[1747111504954,0.01012843,102590.0,102580.0,0.62035493]
[1747111505182,0.01012843,102590.0,102580.0,1.59283946]
[1747111505379,0.01012843,102590.0,102580.0,1.42817605]
[1747111505859,0.001,102590.0,102580.0,1.82817605]
[1747111507031,0.002,102590.0,102580.0,1.84517605]
[1747111508585,0.001,102610.0,102600.0,0.58871123]
[1747111508800,0.001,102610.0,102600.0,2.01357576]
[1747111509184,0.001,102610.0,102600.0,1.84891235]
[1747111509404,0.001,102610.0,102600.0,2.24891235]
[1747111509774,0.00104842,102610.0,102600.0,2.25591235]
[1747111509970,0.00104842,102610.0,102600.0,2.26391235]
[1747111510175,0.00104842,102610.0,102600.0,2.42857576]
[1747111512807,0.00104842,102610.0,102600.0,2.26391235]
[1747111514597,0.001,102630.0,102620.0,0.22412669]
[1747111514811,0.001,102650.0,102640.0,0.58862387]
[1747111515020,0.00104845,102650.0,102640.0,1.04550499]
[1747111515253,0.00104845,102650.0,102640.0,1.06016434]
[1747111515427,0.00104845,102650.0,102640.0,1.38132865]
[1747111515984,0.00104845,102650.0,102640.0,2.19084865]
[1747111517210,0.00104845,102650.0,102640.0,2.19584865]
[1747111518333,0.00104845,102650.0,102640.0,2.218689]
[1747111518653,0.00104845,102650.0,102640.0,2.19584865]
[1747111518855,0.00104845,102650.0,102640.0,2.45871322]
[1747111519061,0.21712739,102670.0,102660.0,0.60453936]
[1747111519280,0.21712739,102670.0,102660.0,1.60657627]
[1747111519922,0.21712739,102670.0,102660.0,2.00657627]
[1747111520310,0.21712739,102670.0,102660.0,2.01757627]
[1747111520519,0.21712739,102670.0,102660.0,1.99473592]
[1747111520749,0.21712739,102670.0,102660.0,1.99873592]
[1747111520953,0.21712739,102670.0,102660.0,2.02157627]
[1747111521160,0.21712739,102670.0,102660.0,2.03611712]
[1747111521516,0.21717584,102670.0,102660.0,2.03611712]
[1747111522140,0.21717584,102670.0,102660.0,2.01327677]
[1747111522790,0.21717584,102670.0,102660.0,2.03611712]
[1747111523511,0.21717584,102670.0,102660.0,2.01327677]
[1747111525117,0.21717584,102670.0,102660.0,2.08327677]
[1747111526605,0.21717584,102670.0,102660.0,2.01327677]
[1747111527205,0.21717584,102670.0,102660.0,2.03611712]
[1747111527761,0.21717584,102670.0,102660.0,2.37994212]
[1747111527993,0.21717584,102670.0,102660.0,2.27319712]
[1747111529288,0.21717584,102670.0,102660.0,2.01327677]
[1747111529645,0.21717584,102670.0,102660.0,1.82191677]
[1747111529849,0.21717584,102670.0,102660.0,2.01287677]
[1747111530017,0.21717584,102670.0,102660.0,1.18539366]
[1747111530221,0.21717584,102670.0,102660.0,1.81276479]
[1747111530638,0.21717584,102670.0,102660.0,1.82730564]
[1747111530862,0.21717584,102670.0,102660.0,1.44542564]
[1747111531043,0.21717584,102670.0,102660.0,1.82730564]
[1747111531244,0.21717584,102670.0,102660.0,2.07779677]
[1747111532454,0.21717584,102670.0,102660.0,1.62088564]
[1747111532677,0.21717584,102670.0,102660.0,1.42992564]
[1747111532881,0.21717584,102670.0,102660.0,1.81180564]
[1747111533255,0.21717584,102670.0,102660.0,1.42992564]
[1747111533457,0.21717584,102670.0,102660.0,2.07759677]
[1747111535284,0.21717584,102670.0,102660.0,2.00759677]
[1747111535849,0.21717584,102670.0,102660.0,2.03043712]
[1747111536310,0.21717584,102670.0,102660.0,2.00759677]
[1747111538180,6e-05,102690.0,102680.0,0.62033658]
[1747111538385,0.00010845,102690.0,102680.0,2.01868973]
[1747111538941,0.0091709,102690.0,102680.0,2.41868973]
[1747111539317,0.0091709,102690.0,102680.0,2.42268973]
[1747111539724,0.0091709,102690.0,102680.0,2.42668973]
[1747111540578,0.0091709,102690.0,102680.0,2.1761986]
[1747111540783,0.00010845,102690.0,102680.0,2.1761986]
[1747111541256,0.00010845,102690.0,102680.0,2.23580973]
[1747111541569,0.00010845,102690.0,102680.0,2.1761586]
[1747111542678,0.0091822,102690.0,102680.0,1.7943586]
[1747111542867,0.0091822,102690.0,102680.0,2.1761186]
[1747111543513,0.0091822,102690.0,102680.0,1.92562747]
[1747111543859,0.0091822,102690.0,102680.0,2.16157775]
[1747111544142,0.0091822,102690.0,102680.0,2.14567775]
[1747111544743,0.0091822,102690.0,102680.0,2.1602186]
[1747111544951,0.0091822,102690.0,102680.0,1.90972747]
[1747111545166,0.0091822,102690.0,102680.0,1.3784586]
[1747111545340,0.0091822,102690.0,102680.0,1.8142786]
[1747111545718,0.0091822,102690.0,102680.0,2.2142786]
[1747111546323,0.0091822,102690.0,102680.0,1.8142786]
[1747111546783,0.0091822,102690.0,102680.0,2.2142786]
[1747111546997,0.0091822,102690.0,102680.0,1.8142786]
[1747111550948,0.0091822,102690.0,102680.0,2.2142786]
[1747111551899,0.0091822,102690.0,102680.0,2.2305786]
[1747111552150,0.0091822,102690.0,102680.0,1.56752662]
[1747111552352,0.0091822,102690.0,102680.0,1.60908662]
[1747111552353,0.0271822,102690.0,102680.0,1.60908662]
[1747111552510,0.01810845,102690.0,102680.0,1.22752662]
[1747111552998,0.02721224,102690.0,102680.0,1.60908662]
[1747111553180,0.02721224,102690.0,102680.0,1.56752662]
[1747111553450,0.02511224,102690.0,102680.0,1.51117828]
[1747111553687,0.02511224,102690.0,102680.0,1.89273828]
[1747111553825,0.02511224,102690.0,102680.0,1.54039412]
[1747111554051,0.02511224,102690.0,102680.0,1.92199412]
[1747111555370,0.00921224,102690.0,102680.0,2.17248525]
[1747111555590,0.00921224,102690.0,102680.0,2.20278525]
[1747111556055,0.00921224,102690.0,102680.0,2.2173261]
[1747111558846,0.00010845,102690.0,102680.0,2.2173261]
[1747111560874,0.00010845,102690.0,102680.0,1.93695412]
[1747111561288,0.01650845,102690.0,102680.0,1.19147753]
[1747111561469,0.022054,102690.0,102680.0,1.58191412]
[1747111561682,0.03179119,102690.0,102680.0,1.20039412]
[1747111561950,0.024154,102690.0,102680.0,1.58191412]
[1747111562188,0.02771497,102690.0,102680.0,1.92191412]
[1747111562409,0.02561497,102690.0,102680.0,1.92191412]
[1747111562620,0.02561497,102690.0,102680.0,1.54039412]
[1747111562961,0.05692729,102690.0,102680.0,1.09179824]
[1747111563206,0.03745225,102690.0,102680.0,0.90003824]
[1747111563400,0.03745225,102690.0,102680.0,1.24303824]
[1747111563819,0.00921497,102690.0,102680.0,1.60488367]
[1747111564026,0.00921497,102690.0,102680.0,1.35439254]
[1747111564172,0.00010845,102690.0,102680.0,1.35439254]
[1747111564746,0.01520845,102690.0,102680.0,0.91813254]
[1747111565823,0.01730845,102690.0,102680.0,0.81336165]
[1747111566037,0.01730845,102690.0,102680.0,1.00412165]
[1747111566038,0.02704583,102690.0,102680.0,1.00412165]
[1747111566262,0.06027891,102690.0,102680.0,1.00412165]
[1747111566475,0.02641522,102690.0,102680.0,1.01303824]
[1747111566679,0.00921522,102690.0,102680.0,1.10889254]
[1747111567097,0.00921522,102690.0,102680.0,1.12449254]
[1747111568345,0.00010845,102690.0,102680.0,1.12449254]
[1747111568507,0.00010845,102690.0,102680.0,1.14019254]
[1747111568711,0.00010845,102690.0,102680.0,1.12449254]
[1747111569295,0.00010845,102690.0,102680.0,1.39068367]
[1747111569843,0.00010845,102690.0,102680.0,1.40522452]
[1747111570367,0.00010845,102690.0,102680.0,1.15473339]
[1747111570592,0.00010845,102690.0,102680.0,1.40522452]
[1747111571805,0.00010845,102690.0,102680.0,1.39922452]
[1747111572017,0.00010845,102690.0,102680.0,1.40722452]
[1747111573659,0.00010845,102690.0,102680.0,1.80722452]
[1747111575591,0.00010845,102690.0,102680.0,1.79412452]
[1747111578112,0.00010845,102690.0,102680.0,2.21484452]
[1747111591718,0.00010845,102690.0,102680.0,1.41260452]
[1747111591924,0.00010845,102690.0,102680.0,1.66309565]
[1747111592124,0.00010845,102690.0,102680.0,1.93553465]
[1747111592984,0.00010845,102690.0,102680.0,2.73753465]
[1747111594550,0.01904242,102740.0,102730.0,0.58028671]
[1747111594754,0.01904242,102740.0,102730.0,1.31579173]
[1747111594978,0.03512727,102740.0,102730.0,0.6675806]
[1747111595184,0.03512727,102740.0,102730.0,0.65866401]
[1747111595185,0.04695981,102740.0,102730.0,0.65866401]
[1747111595392,0.07243724,102740.0,102730.0,0.5717263]
[1747111595568,0.05606179,102740.0,102730.0,0.2317263]
[1747111595777,0.06579443,102740.0,102730.0,0.21415312]
[1747111595982,0.04640067,102730.0,102720.0,0.57280912]
[1747111596196,0.03666689,102730.0,102720.0,0.77220912]
[1747111597063,0.04576887,102730.0,102720.0,0.77220912]
[1747111598055,0.28689181,102730.0,102720.0,0.39410404]
[1747111598265,0.02630198,102730.0,102720.0,0.4330435]
[1747111598467,0.03603547,102730.0,102720.0,0.4330435]
[1747111598674,0.05550293,102730.0,102720.0,0.4350435]
[1747111598890,0.04576906,102730.0,102720.0,0.4350435]
[1747111599019,0.06523652,102730.0,102720.0,0.4350435]
[1747111599443,0.07497058,102730.0,102720.0,0.4350435]
[1747111599966,0.06523652,102730.0,102720.0,0.4350435]
[1747111600497,0.07497049,102730.0,102720.0,0.4350435]
[1747111600707,0.28883933,102730.0,102720.0,0.002]
[1747111600914,0.27910555,102730.0,102720.0,0.21617396]
[1747111601105,0.27910555,102730.0,102720.0,0.22590868]
[1747111601511,0.27910555,102730.0,102720.0,0.01173501]
[1747111601924,0.51012884,102730.0,102720.0,0.002]
[1747111602846,0.25963771,102730.0,102720.0,0.001]
[1747111603599,0.51012884,102730.0,102720.0,0.001]
[1747111604481,0.23247415,102720.0,102710.0,0.20913615]
[1747111604684,0.31377574,102720.0,102710.0,0.42333068]
[1747111604890,0.54479724,102720.0,102700.0,0.53472619]
[1747111605095,0.54479724,102720.0,102690.0,1.02372709]
[1747111605096,0.00973633,102700.0,102690.0,1.02372709]
[1747111605305,0.00973624,102700.0,102690.0,0.99353989]
[1747111605518,0.07783518,102700.0,102690.0,0.9838027]
[1747111605692,0.09633509,102700.0,102690.0,1.20267774]
[1747111605837,0.08659847,102700.0,102690.0,1.20267774]
[1747111606044,0.08659847,102700.0,102690.0,1.19376115]
[1747111606249,0.09570045,102700.0,102690.0,1.19776115]
[1747111606451,0.10592162,102700.0,102690.0,1.19376115]
[1747111606673,0.0475592,102700.0,102690.0,1.19376115]
[1747111606877,0.0454592,102700.0,102690.0,1.26676115]
[1747111608081,0.0454592,102700.0,102690.0,1.27076115]
[1747111608505,0.0454592,102700.0,102690.0,1.26676115]
[1747111608705,0.09571014,102700.0,102690.0,1.26676115]
[1747111608912,0.09571014,102700.0,102690.0,1.26976115]
[1747111609673,0.08597371,102700.0,102690.0,1.26976115]
[1747111609803,0.09571014,102700.0,102690.0,1.26976115]
[1747111610430,0.0454592,102700.0,102690.0,1.26976115]
[1747111610666,0.05519582,102700.0,102690.0,1.26976115]
[1747111610821,0.0454592,102700.0,102690.0,1.26976115]
[1747111611027,0.05519572,102700.0,102690.0,1.26976115]
[1747111612791,0.50253014,102700.0,102690.0,0.69608]
[1747111612996,0.57225545,102700.0,102690.0,0.62608]
[1747111613204,0.56251883,102700.0,102690.0,0.42068]
[1747111613414,0.21423644,102690.0,102680.0,0.20917899]
[1747111613623,0.49206552,102690.0,102680.0,0.20917899]
[1747111613833,0.23183695,102690.0,102680.0,0.20451879]
[1747111613987,0.30190183,102690.0,102680.0,0.2142574]
[1747111614390,0.21425683,102680.0,102670.0,0.42917953]
[1747111614712,0.03607647,102680.0,102670.0,0.6217788]
[1747111615022,0.00973814,102680.0,102670.0,0.63151836]
[1747111615226,0.01947637,102680.0,102670.0,0.97151836]
[1747111615424,0.54271971,102690.0,102680.0,0.20451869]
[1747111615637,0.54271971,102690.0,102680.0,0.2142574]
[1747111616467,0.55460529,102690.0,102680.0,0.20451869]
[1747111616834,0.55460529,102690.0,102680.0,0.20451879]
[1747111617043,0.00973823,102680.0,102670.0,0.9745176]
[1747111617415,0.08564905,102680.0,102670.0,0.96177852]
[1747111617649,0.01947845,102670.0,102660.0,0.22916509]
[1747111617859,0.53778269,102680.0,102660.0,0.57890531]
[1747111618039,0.54752168,102680.0,102670.0,0.22401773]
[1747111618394,0.54962168,102680.0,102670.0,0.21427827]
[1747111618590,0.54962168,102680.0,102670.0,0.003]
[1747111618826,0.34300223,102680.0,102670.0,0.22701735]
[1747111619024,0.10224981,102680.0,102670.0,0.22401735]
[1747111619313,0.10224981,102680.0,102670.0,0.23375672]
[1747111619494,0.11198871,102680.0,102670.0,0.22601745]
[1747111619899,0.03607665,102680.0,102670.0,0.23575672]
[1747111620101,0.03517495,102690.0,102680.0,0.2142574]
[1747111620309,0.0449128,102690.0,102680.0,0.2142574]
[1747111620519,0.05465084,102690.0,102680.0,0.22399592]
[1747111620845,0.05465084,102690.0,102680.0,0.23373434]
[1747111621000,0.10677962,102690.0,102680.0,0.23373434]
[1747111621204,0.10677962,102690.0,102680.0,0.22399592]